[Event "FIDE World Junior U20-ch Girls 2025"]
[Site "Petrovac"]
[Date "2025.02.28"]
[Round "3.30"]
[White "Nguyen, Binh Vy"]
[Black "Valcu, Lavinia"]
[Result "1/2-1/2"]
[Annotator "ChessBase"]
[ECO "B90"]
[WhiteElo "1926"]
[BlackElo "2137"]
[PlyCount "112"]
[EventDate "2025.02.23"]
[EventType "swiss"]
[EventCountry "MNE"]
[SourceTitle "playchess.com"]
[Source "ChessBase"]
[SourceQuality "1"]
[TimeControl "40/5400+30:1800+30"]

1. e4 {[%emt 0:00:01]} c5 {[%emt 0:00:06]} 2. Nf3 {[%emt 0:00:07]} d6 {[%emt 0:00:05]} 3. d4 {[%emt 0:00:08]} cxd4 {[%emt 0:00:05]} 4. Nxd4 {[%emt 0:00:04]} Nf6 {[%emt 0:00:09]} 5. Nc3 {[%emt 0:00:06]} a6 {[%emt 0:00:05]} 6. f3 {[%emt 0:00:09]} e5 {[%emt 0:00:11]} 7. Nb3 {[%emt 0:00:08]} Be6 {[%emt 0:01:13]} 8. Be3 {[%emt 0:00:08]} h5 {[%emt 0:00:06]} 9. Qd2 {[%emt 0:00:51]} Nbd7 {[%emt 0:00:07]} 10. Nd5 {[%emt 0:03:48]} Bxd5 {[%emt 0:00:23]} 11. exd5 {[%emt 0:00:07]} g6 {[%emt 0:00:04]} 12. Be2 {[%emt 0:00:43]} Rc8 {[%emt 0:02:58]} 13. c4 {[%emt 0:03:49]} Be7 {[%emt 0:06:14]} 14. Na5 {[%emt 0:03:11]} Qc7 {[%emt 0:01:36]} 15. b4 {[%emt 0:04:28]} e4 {[%emt 0:07:09]} 16. f4 {[%emt 0:07:48]} Ng4 {[%emt 0:03:41]} 17. Bd4 {[%emt 0:01:58]} Bf6 {[%emt 0:02:48]} 18. O-O {[%emt 0:02:08]} O-O {[%emt 0:05:28]} 19. h3 {[%emt 0:06:24]} Nh6 {[%emt 0:02:38]} 20. g4 {[%emt 0:06:27]} hxg4 {[%emt 0:13:41]} 21. hxg4 {[%emt 0:00:41]} Bxd4+ {[%emt 0:08:09]} 22. Qxd4 {[%emt 0:03:04]} b5 {[%emt 0:00:45]} 23. Nc6 {[%emt 0:13:01]} Nb8 {[%emt 0:01:27]} 24. Nxb8 Rxb8 {[%emt 0:04:01]} 25. c5 {[%emt 0:05:05]} Qe7 {[%emt 0:05:58]} 26. Kg2 {[%emt 0:05:50]} f5 {[%emt 0:00:30]} 27. Rh1 {[%emt 0:11:44]} Qg7 {[%emt 0:00:50]} 28. Qxg7+ {[%emt 0:00:24]} Kxg7 {[%emt 0:00:05]} 29. g5 {[%emt 0:01:50]} Ng4 {[%emt 0:00:12]} 30. Bxg4 {[%emt 0:00:12]} fxg4 {[%emt 0:00:06]} 31. Kg3 {[%emt 0:00:39]} Rf5 {[%emt 0:00:20]} 32. Rad1 {[%emt 0:15:45]} Rbf8 {[%emt 0:02:50]} 33. Rhf1 {[%emt 0:00:26]} e3 {[%emt 0:02:04]} 34. Rfe1 {[%emt 0:01:03]} Rxf4 {[%emt 0:02:44]} 35. Rxe3 {[%emt 0:00:06]} a5 {[%emt 0:06:18]} 36. cxd6 {[%emt 0:02:49]} axb4 {[%emt 0:07:21]} 37. Rde1 {[%emt 0:02:57]} R4f5 {[%emt 0:04:00]} 38. Re7+ {[%emt 0:00:33]} R8f7 {[%emt 0:01:18]} 39. Rd1 {[%emt 0:00:37]} Kf8 {[%emt 0:06:21]} 40. Re4 {[%emt 0:00:32]} Rxg5 {[%emt 0:04:13]} 41. Rxb4 {[%emt 0:30:25]} Rf3+ {[%emt 0:03:23]} 42. Kg2 {[%emt 0:00:00]} Re5 {[%emt 0:08:20]} 43. Rd2 {[%emt 0:00:00]} Ree3 {[%emt 0:05:36]} 44. Rxg4 {[%emt 0:00:00]} Rd3 {[%emt 0:02:24]} 45. Rxg6 {[%emt 0:00:00]} Rxd2+ {[%emt 0:01:03]} 46. Kxf3 {[%emt 0:00:00]} Ke8 {[%emt 0:01:31]} 47. Ke4 {[%emt 0:00:00]} Rxa2 {[%emt 0:00:24]} 48. Kd4 {[%emt 0:00:00]} Kd7 {[%emt 0:02:14]} 49. Kc5 {[%emt 0:00:00]} Rc2+ {[%emt 0:00:06]} 50. Kb4 {[%emt 0:00:00]} Rd2 {[%emt 0:00:34]} 51. Kc5 {[%emt 0:00:00]} Rc2+ {[%emt 0:00:04]} 52. Kxb5 {[%emt 0:00:00]} Rc1 {[%emt 0:00:05]} 53. Kb4 {[%emt 0:00:00]} Rc2 {[%emt 0:00:06]} 54. Rg3 {[%emt 0:00:00]} Kxd6 {[%emt 0:00:08]} 55. Rc3 {[%emt 0:00:00]} Rxc3 {[%emt 0:00:05]} 56. Kxc3 {[%emt 0:00:00]} Kxd5 {[%emt 0:00:03]} 1/2-1/2

[Event "FIDE World Junior U20-ch Girls 2025"]
[Site "Petrovac"]
[Date "2025.02.28"]
[Round "3.31"]
[White "Peglau, Dora"]
[Black "Nguyen Thien Ngan"]
[Result "0-1"]
[Annotator "ChessBase"]
[ECO "E05"]
[WhiteElo "2134"]
[BlackElo "1923"]
[PlyCount "100"]
[EventDate "2025.02.23"]
[EventType "swiss"]
[EventCountry "MNE"]
[SourceTitle "playchess.com"]
[Source "ChessBase"]
[SourceQuality "1"]
[TimeControl "40/5400+30:1800+30"]

1. c4 {[%emt 0:00:02]} e6 {[%emt 0:00:06]} 2. g3 {[%emt 0:00:19]} d5 {[%emt 0:00:07]} 3. Bg2 {[%emt 0:00:09]} Nf6 {[%emt 0:00:05]} 4. Nf3 {[%emt 0:00:39]} Be7 {[%emt 0:00:12]} 5. O-O {[%emt 0:00:50]} O-O {[%emt 0:00:16]} 6. d4 {[%emt 0:00:21]} dxc4 {[%emt 0:00:36]} 7. Ne5 {[%emt 0:00:32]} Nc6 {[%emt 0:01:23]} 8. Bxc6 {[%emt 0:00:14]} bxc6 {[%emt 0:00:06]} 9. Nxc6 {[%emt 0:00:03]} Qd6 {[%emt 0:01:07]} 10. Qa4 {[%emt 0:04:30]} Bb7 {[%emt 0:15:17]} 11. Nxe7+ Qxe7 {[%emt 0:00:06]} 12. Qxc4 {[%emt 0:01:50]} e5 {[%emt 0:08:06]} 13. dxe5 Qxe5 {[%emt 0:03:21]} 14. Nc3 {[%emt 0:11:40]} c5 {[%emt 0:10:38]} 15. Be3 {[%emt 0:06:28]} Rac8 {[%emt 0:08:43]} 16. Rfd1 {[%emt 0:05:38]} Rfe8 {[%emt 0:02:42]} 17. Rac1 {[%emt 0:06:24]} Qf5 {[%emt 0:11:38]} 18. Qh4 {[%emt 0:12:24]} h6 {[%emt 0:17:41]} 19. h3 {[%emt 0:07:37]} Re6 {[%emt 0:09:49]} 20. g4 {[%emt 0:04:57]} Qe5 {[%emt 0:01:43]} 21. g5 {[%emt 0:12:36]} hxg5 {[%emt 0:03:43]} 22. Bxg5 {[%emt 0:00:38]} Ne4 {[%emt 0:01:40]} 23. Nxe4 {[%emt 0:05:23]} Bxe4 {[%emt 0:00:02]} 24. Qf4 {[%emt 0:02:50]} Qxb2 {[%emt 0:01:16]} 25. Rd7 {[%emt 0:02:19]} Bg6 {[%emt 0:01:36]} 26. Rxa7 {[%emt 0:09:13]} Qxe2 {[%emt 0:00:27]} 27. a4 {[%emt 0:02:28]} Qd3 {[%emt 0:00:49]} 28. Kh2 {[%emt 0:01:54]} Re4 {[%emt 0:00:34]} 29. Qg3 {[%emt 0:00:30]} Qd5 {[%emt 0:00:29]} 30. Be3 {[%emt 0:01:13]} c4 {[%emt 0:00:22]} 31. Rc3 {[%emt 0:01:05]} Rce8 {[%emt 0:00:38]} 32. Rc7 {[%emt 0:00:42]} R8e6 {[%emt 0:00:36]} 33. Rc5 {[%emt 0:00:47]} Qd7 {[%emt 0:00:34]} 34. R5xc4 {[%emt 0:00:25]} Rxc4 {[%emt 0:00:24]} 35. Rxc4 {[%emt 0:00:00]} Be4 {[%emt 0:00:33]} 36. Rc5 {[%emt 0:01:14]} Re8 {[%emt 0:00:27]} 37. a5 {[%emt 0:00:34]} Qd1 {[%emt 0:00:30]} 38. Rc1 {[%emt 0:00:20]} Qa4 {[%emt 0:00:25]} 39. Rg1 {[%emt 0:00:38]} g6 {[%emt 0:00:36]} 40. Bb6 {[%emt 0:00:31]} Bf5 {[%emt 0:00:27]} 41. Qd6 {[%emt 0:07:34]} Re6 {[%emt 0:12:15]} 42. Qd8+ {[%emt 0:02:05]} Re8 {[%emt 0:00:53]} 43. Qf6 {[%emt 0:03:24]} Qf4+ {[%emt 0:00:18]} 44. Rg3 {[%emt 0:00:19]} Re2 {[%emt 0:02:01]} 45. Qd8+ {[%emt 0:05:37]} Kh7 {[%emt 0:01:22]} 46. Qd4 {[%emt 0:00:29]} Be4 {[%emt 0:00:52]} 47. h4 {[%emt 0:12:09]} Re1 {[%emt 0:01:10]} 48. f3 {[%emt 0:00:05]} Re2+ {[%emt 0:00:15]} 49. Kh3 {[%emt 0:00:21]} Bf5+ {[%emt 0:00:06]} 50. Rg4 {[%emt 0:00:07]} Rh2# {[%emt 0:00:07]} 0-1

[Event "FIDE World Junior U20-ch Girls 2025"]
[Site "Petrovac"]
[Date "2025.02.28"]
[Round "3.32"]
[White "Hernandez, Lexie Grace"]
[Black "Ter-Avetisjana, Agnesa Stepania"]
[Result "0-1"]
[Annotator "ChessBase"]
[ECO "D00"]
[WhiteElo "1892"]
[BlackElo "2133"]
[PlyCount "98"]
[EventDate "2025.02.23"]
[EventType "swiss"]
[EventCountry "MNE"]
[SourceTitle "playchess.com"]
[Source "ChessBase"]
[SourceQuality "1"]
[TimeControl "40/5400+30:1800+30"]

1. d4 {[%emt 0:01:24]} d5 {[%emt 0:00:38]} 2. Bf4 {[%emt 0:00:29]} Nf6 {[%emt 0:00:26]} 3. e3 {[%emt 0:00:15]} Bf5 {[%emt 0:00:35]} 4. Bd3 {[%emt 0:00:52]} e6 {[%emt 0:02:38]} 5. Nf3 {[%emt 0:01:37]} Nbd7 {[%emt 0:02:57]} 6. h3 {[%emt 0:01:38]} Be7 {[%emt 0:03:30]} 7. Nbd2 {[%emt 0:00:26]} c6 {[%emt 0:03:31]} 8. O-O {[%emt 0:01:46]} O-O {[%emt 0:00:53]} 9. Bxf5 {[%emt 0:00:37]} exf5 {[%emt 0:00:07]} 10. c4 {[%emt 0:00:04]} dxc4 11. Nxc4 {[%emt 0:00:21]} Nd5 {[%emt 0:06:20]} 12. Bh2 {[%emt 0:00:13]} N7b6 {[%emt 0:02:45]} 13. Nfe5 {[%emt 0:05:41]} f6 {[%emt 0:08:08]} 14. Nxb6 axb6 {[%emt 0:00:01]} 15. Nd3 {[%emt 0:00:48]} Bd6 {[%emt 0:00:46]} 16. Bxd6 Qxd6 {[%emt 0:00:14]} 17. Qb3 {[%emt 0:02:40]} Kh8 {[%emt 0:00:44]} 18. a3 {[%emt 0:03:15]} Ra5 {[%emt 0:05:24]} 19. Rac1 {[%emt 0:01:29]} h6 {[%emt 0:09:26]} 20. Qd1 {[%emt 0:09:48]} f4 {[%emt 0:12:09]} 21. e4 {[%emt 0:03:13]} Nc7 {[%emt 0:01:38]} 22. Ne1 {[%emt 0:02:31]} Re8 {[%emt 0:08:17]} 23. Qd3 {[%emt 0:05:38]} Qe7 {[%emt 0:05:29]} 24. f3 {[%emt 0:03:58]} f5 {[%emt 0:03:24]} 25. Qd2 {[%emt 0:03:36]} Qd6 {[%emt 0:01:56]} 26. Qd3 {[%emt 0:03:25]} Ne6 {[%emt 0:03:28]} 27. Rd1 {[%emt 0:00:43]} Ng5 {[%emt 0:05:42]} 28. e5 {[%emt 0:01:17]} Qg6 {[%emt 0:00:13]} 29. Kh1 {[%emt 0:00:21]} Rd5 {[%emt 0:01:56]} 30. Qd2 {[%emt 0:02:53]} Ne6 {[%emt 0:00:27]} 31. Qb4 {[%emt 0:00:57]} b5 {[%emt 0:01:48]} 32. a4 {[%emt 0:05:42]} Red8 {[%emt 0:00:18]} 33. axb5 {[%emt 0:00:37]} Rxb5 {[%emt 0:01:17]} 34. Qc3 {[%emt 0:02:01]} Rxe5 {[%emt 0:03:33]} 35. dxe5 {[%emt 0:00:27]} Rxd1 {[%emt 0:00:07]} 36. Qb3 {[%emt 0:00:13]} Rd7 {[%emt 0:00:48]} 37. Nd3 {[%emt 0:00:38]} Qe8 {[%emt 0:04:18]} 38. Re1 {[%emt 0:00:41]} Qe7 {[%emt 0:02:24]} 39. Ra1 {[%emt 0:03:15]} Rd5 {[%emt 0:01:06]} 40. Ra7 {[%emt 0:03:30]} Qd7 {[%emt 0:00:25]} 41. Ra3 {[%emt 0:35:01]} Kh7 {[%emt 0:04:44]} 42. Kh2 {[%emt 0:00:00]} c5 {[%emt 0:09:35]} 43. Qc4 {[%emt 0:00:00]} b5 {[%emt 0:01:33]} 44. Qa2 {[%emt 0:00:00]} c4 {[%emt 0:01:43]} 45. Nf2 {[%emt 0:00:00]} Rd2 {[%emt 0:00:54]} 46. Nh1 {[%emt 0:00:00]} Nd4 {[%emt 0:03:55]} 47. Kg1 {[%emt 0:00:00]} Rd1+ {[%emt 0:01:29]} 48. Kh2 {[%emt 0:00:00]} Ne2 {[%emt 0:01:00]} 49. Nf2 {[%emt 0:00:00]} Qd4 {[%emt 0:00:25]} 0-1

[Event "FIDE World Junior U20-ch Girls 2025"]
[Site "Petrovac"]
[Date "2025.02.28"]
[Round "3.33"]
[White "Shokirjonova, Barchinoy"]
[Black "Ajradinoska, Indzi"]
[Result "1-0"]
[Annotator "ChessBase"]
[ECO "D37"]
[WhiteElo "2061"]
[BlackElo "1761"]
[PlyCount "57"]
[EventDate "2025.02.23"]
[EventType "swiss"]
[EventCountry "MNE"]
[SourceTitle "playchess.com"]
[Source "ChessBase"]
[SourceQuality "1"]
[TimeControl "40/5400+30:1800+30"]

1. d4 {[%emt 0:00:05]} e6 {[%emt 0:00:07]} 2. c4 {[%emt 0:00:09]} Nf6 {[%emt 0:00:06]} 3. Nf3 {[%emt 0:00:05]} Be7 {[%emt 0:00:31]} 4. Nc3 {[%emt 0:00:17]} d5 {[%emt 0:00:12]} 5. Bf4 {[%emt 0:00:30]} O-O {[%emt 0:01:20]} 6. e3 {[%emt 0:00:26]} b6 {[%emt 0:01:11]} 7. a3 {[%emt 0:05:25]} Bb7 {[%emt 0:08:35]} 8. cxd5 exd5 {[%emt 0:00:36]} 9. Bd3 {[%emt 0:03:33]} Nbd7 {[%emt 0:02:01]} 10. O-O {[%emt 0:08:20]} Ne4 {[%emt 0:10:57]} 11. Qc2 {[%emt 0:07:54]} f5 {[%emt 0:06:05]} 12. Nb5 {[%emt 0:06:17]} Rf6 {[%emt 0:11:04]} 13. Qxc7 Qxc7 {[%emt 0:06:55]} 14. Nxc7 {[%emt 0:09:22]} Raf8 {[%emt 0:02:21]} 15. Ne5 {[%emt 0:06:11]} Nxe5 {[%emt 0:03:46]} 16. Bxe5 {[%emt 0:00:36]} Rh6 {[%emt 0:03:16]} 17. Rac1 {[%emt 0:05:14]} Rd8 {[%emt 0:05:01]} 18. Nb5 {[%emt 0:03:31]} a6 {[%emt 0:05:12]} 19. Rc7 {[%emt 0:03:29]} axb5 {[%emt 0:06:21]} 20. Rxe7 {[%emt 0:00:50]} Bc6 {[%emt 0:01:17]} 21. Rxg7+ {[%emt 0:00:08]} Kf8 {[%emt 0:00:08]} 22. Rc7 {[%emt 0:02:16]} Rd7 {[%emt 0:04:16]} 23. Rc8+ {[%emt 0:03:54]} Ke7 {[%emt 0:01:35]} 24. Rc1 {[%emt 0:00:33]} Bb7 {[%emt 0:01:39]} 25. R8c7 {[%emt 0:01:45]} Nd6 {[%emt 0:00:49]} 26. Bxd6+ {[%emt 0:01:37]} Kxd6 {[%emt 0:00:35]} 27. Rxd7+ {[%emt 0:00:05]} Kxd7 {[%emt 0:00:05]} 28. Bxf5+ {[%emt 0:00:09]} Kd8 {[%emt 0:01:49]} 29. Bd3 {[%emt 0:00:14]} 1-0

[Event "FIDE World Junior U20-ch Girls 2025"]
[Site "Petrovac"]
[Date "2025.02.28"]
[Round "3.34"]
[White "Guo, Hanxi"]
[Black "Mrittika Mallick"]
[Result "1/2-1/2"]
[Annotator "ChessBase"]
[ECO "B92"]
[WhiteElo "1854"]
[BlackElo "2058"]
[PlyCount "156"]
[EventDate "2025.02.23"]
[EventType "swiss"]
[EventCountry "MNE"]
[SourceTitle "playchess.com"]
[Source "ChessBase"]
[SourceQuality "1"]
[TimeControl "40/5400+30:1800+30"]

1. e4 {[%emt 0:00:04]} c5 {[%emt 0:00:08]} 2. Nf3 {[%emt 0:00:06]} d6 {[%emt 0:00:07]} 3. d4 {[%emt 0:00:05]} cxd4 {[%emt 0:00:07]} 4. Nxd4 {[%emt 0:00:03]} Nf6 {[%emt 0:00:08]} 5. Nc3 {[%emt 0:00:07]} a6 {[%emt 0:00:05]} 6. Be2 {[%emt 0:00:30]} e5 {[%emt 0:00:10]} 7. Nb3 {[%emt 0:00:04]} Be7 {[%emt 0:00:07]} 8. O-O {[%emt 0:00:41]} O-O {[%emt 0:00:52]} 9. Be3 {[%emt 0:00:36]} Be6 {[%emt 0:01:02]} 10. Qd3 {[%emt 0:05:20]} Nc6 {[%emt 0:04:55]} 11. Rfd1 {[%emt 0:02:53]} Rc8 {[%emt 0:09:17]} 12. Bf3 {[%emt 0:08:34]} Qc7 {[%emt 0:13:08]} 13. a4 {[%emt 0:03:54]} Na5 {[%emt 0:04:57]} 14. Nxa5 Qxa5 {[%emt 0:00:03]} 15. Qd2 {[%emt 0:15:48]} Qb4 {[%emt 0:03:42]} 16. Nd5 {[%emt 0:01:43]} Nxd5 17. exd5 {[%emt 0:00:07]} Qxd2 18. Rxd2 {[%emt 0:00:12]} Bd7 {[%emt 0:03:32]} 19. Be2 {[%emt 0:02:00]} f5 20. c4 {[%emt 0:04:17]} f4 {[%emt 0:08:28]} 21. Bb6 {[%emt 0:00:35]} e4 {[%emt 0:01:03]} 22. Bf1 {[%emt 0:03:22]} Bf6 {[%emt 0:08:46]} 23. a5 {[%emt 0:05:20]} Bf5 {[%emt 0:02:12]} 24. Re1 {[%emt 0:04:12]} Rfe8 {[%emt 0:01:49]} 25. Bd4 {[%emt 0:04:15]} Bg5 {[%emt 0:03:13]} 26. b4 {[%emt 0:04:15]} e3 {[%emt 0:02:29]} 27. fxe3 {[%emt 0:03:52]} fxe3 {[%emt 0:00:03]} 28. Rb2 {[%emt 0:01:22]} Re4 {[%emt 0:05:00]} 29. Bb6 {[%emt 0:02:07]} Rce8 {[%emt 0:04:04]} 30. Bd3 {[%emt 0:06:11]} R4e5 {[%emt 0:00:53]} 31. Bxf5 {[%emt 0:00:30]} Rxf5 {[%emt 0:00:02]} 32. Rbe2 {[%emt 0:00:49]} Rfe5 {[%emt 0:12:30]} 33. Bc7 {[%emt 0:01:06]} Re4 {[%emt 0:00:15]} 34. c5 {[%emt 0:09:31]} Rxb4 {[%emt 0:01:02]} 35. cxd6 {[%emt 0:00:49]} Rd4 {[%emt 0:00:06]} 36. d7 {[%emt 0:01:04]} Rf8 {[%emt 0:00:09]} 37. d6 {[%emt 0:02:17]} Rdf4 {[%emt 0:07:50]} 38. Bb6 {[%emt 0:09:49]} R4f7 {[%emt 0:01:15]} 39. Bxe3 {[%emt 0:00:48]} Bxe3+ {[%emt 0:01:19]} 40. Rxe3 {[%emt 0:00:05]} Rxd7 {[%emt 0:00:08]} 41. Re7 {[%emt 0:30:28]} Rxd6 {[%emt 0:33:00]} 42. Rxb7 {[%emt 0:00:08]} h5 {[%emt 0:00:00]} 43. h3 {[%emt 0:00:00]} Rf5 {[%emt 0:00:00]} 44. Rb6 {[%emt 0:00:00]} Rd2 {[%emt 0:00:00]} 45. Rg6 {[%emt 0:00:00]} Kf7 {[%emt 0:00:00]} 46. Rxa6 {[%emt 0:00:00]} Rg5 {[%emt 0:00:00]} 47. Rf1+ {[%emt 0:00:00]} Ke7 {[%emt 0:00:00]} 48. Rf2 {[%emt 0:00:00]} Rd1+ {[%emt 0:00:00]} 49. Kh2 {[%emt 0:00:00]} h4 {[%emt 0:00:00]} 50. Ra7+ {[%emt 0:00:00]} Ke8 {[%emt 0:00:00]} 51. Rf4 {[%emt 0:00:00]} Rd2 {[%emt 0:00:00]} 52. Rg4 {[%emt 0:00:00]} Rxg4 {[%emt 0:00:00]} 53. hxg4 {[%emt 0:00:00]} Kf8 {[%emt 0:00:00]} 54. a6 {[%emt 0:00:00]} Ra2 {[%emt 0:00:22]} 55. g5 {[%emt 0:00:00]} g6 {[%emt 0:02:28]} 56. Kh3 {[%emt 0:00:00]} Ra4 {[%emt 0:00:25]} 57. g3 {[%emt 0:00:00]} Ra3 {[%emt 0:03:20]} 58. Kxh4 {[%emt 0:00:00]} Ra4+ {[%emt 0:00:23]} 59. g4 {[%emt 0:00:00]} Ra3 {[%emt 0:00:10]} 60. Rd7 {[%emt 0:00:00]} Rxa6 {[%emt 0:00:15]} 61. Kg3 {[%emt 0:00:00]} Ra4 {[%emt 0:00:20]} 62. Kf3 {[%emt 0:00:00]} Rb4 {[%emt 0:00:21]} 63. Rd6 {[%emt 0:00:00]} Kg7 {[%emt 0:00:23]} 64. Re6 {[%emt 0:00:00]} Rb7 {[%emt 0:00:27]} 65. Kf4 {[%emt 0:00:00]} Ra7 {[%emt 0:00:08]} 66. Rd6 {[%emt 0:00:00]} Re7 {[%emt 0:00:08]} 67. Rd4 {[%emt 0:00:00]} Kf7 {[%emt 0:00:29]} 68. Rd5 {[%emt 0:00:00]} Kg7 {[%emt 0:00:22]} 69. Re5 {[%emt 0:00:00]} Ra7 {[%emt 0:00:06]} 70. Re4 {[%emt 0:00:00]} Rb7 {[%emt 0:00:10]} 71. Rd4 {[%emt 0:00:00]} Re7 {[%emt 0:00:06]} 72. Rd6 {[%emt 0:00:00]} Kf7 {[%emt 0:01:10]} 73. Rb6 {[%emt 0:00:00]} Kg7 {[%emt 0:00:05]} 74. Rb4 {[%emt 0:00:00]} Kf7 {[%emt 0:00:09]} 75. Ra4 {[%emt 0:00:00]} Kg7 {[%emt 0:00:06]} 76. Re4 {[%emt 0:00:00]} Ra7 {[%emt 0:00:40]} 77. Re6 {[%emt 0:00:37]} Ra4+ {[%emt 0:00:36]} 78. Re4 {[%emt 0:00:28]} Ra7 {[%emt 0:00:08]} 1/2-1/2

[Event "FIDE World Junior U20-ch Girls 2025"]
[Site "Petrovac"]
[Date "2025.02.28"]
[Round "3.35"]
[White "Peglau, Charis"]
[Black "Popovic, Mateja"]
[Result "1-0"]
[Annotator "ChessBase"]
[ECO "A07"]
[WhiteElo "2203"]
[BlackElo "1917"]
[PlyCount "45"]
[EventDate "2025.02.23"]
[EventType "swiss"]
[EventCountry "MNE"]
[SourceTitle "playchess.com"]
[Source "ChessBase"]
[SourceQuality "1"]
[TimeControl "40/5400+30:1800+30"]

1. Nf3 {[%emt 0:00:03]} d5 {[%emt 0:00:21]} 2. g3 {[%emt 0:00:13]} e6 {[%emt 0:00:12]} 3. Bg2 {[%emt 0:00:13]} Nf6 {[%emt 0:00:23]} 4. O-O {[%emt 0:01:05]} b6 {[%emt 0:02:38]} 5. c4 {[%emt 0:03:45]} Bb7 {[%emt 0:01:02]} 6. d4 {[%emt 0:00:51]} dxc4 {[%emt 0:04:28]} 7. Qa4+ {[%emt 0:06:17]} Nbd7 {[%emt 0:01:00]} 8. Nc3 {[%emt 0:03:39]} c5 {[%emt 0:04:58]} 9. Rd1 {[%emt 0:04:05]} cxd4 {[%emt 0:07:08]} 10. Nxd4 {[%emt 0:02:29]} Bxg2 11. Kxg2 {[%emt 0:00:13]} Qc7 {[%emt 0:01:19]} 12. Bg5 {[%emt 0:15:21]} Be7 {[%emt 0:02:32]} 13. Bxf6 gxf6 {[%emt 0:09:52]} 14. Kg1 {[%emt 0:08:58]} O-O {[%emt 0:01:57]} 15. Nxe6 {[%emt 0:02:19]} fxe6 {[%emt 0:00:17]} 16. Rxd7 {[%emt 0:00:15]} Qc5 {[%emt 0:00:18]} 17. Ne4 {[%emt 0:06:39]} Qb4 {[%emt 0:01:07]} 18. Qc6 {[%emt 0:08:05]} Rae8 {[%emt 0:07:33]} 19. Qxe6+ {[%emt 0:01:33]} Kh8 {[%emt 0:00:05]} 20. Rad1 {[%emt 0:04:23]} f5 {[%emt 0:04:03]} 21. Qe5+ {[%emt 0:07:11]} Kg8 {[%emt 0:00:18]} 22. Nd6 {[%emt 0:04:15]} Bxd6 {[%emt 0:01:09]} 23. Qg7# {[%emt 0:00:06]} 1-0

[Event "FIDE World Junior U20-ch Girls 2025"]
[Site "Petrovac"]
[Date "2025.02.28"]
[Round "3.36"]
[White "Mickunaite, Agne"]
[Black "Bochnickova, Simona"]
[Result "1/2-1/2"]
[Annotator "ChessBase"]
[ECO "A21"]
[WhiteElo "1918"]
[BlackElo "2171"]
[PlyCount "105"]
[EventDate "2025.02.23"]
[EventType "swiss"]
[EventCountry "MNE"]
[SourceTitle "playchess.com"]
[Source "ChessBase"]
[SourceQuality "1"]
[TimeControl "40/5400+30:1800+30"]

1. c4 {[%emt 0:00:02]} e5 {[%emt 0:00:04]} 2. Nc3 {[%emt 0:00:08]} Bb4 {[%emt 0:00:05]} 3. Nd5 {[%emt 0:02:48]} Be7 {[%emt 0:00:06]} 4. Nf3 {[%emt 0:02:34]} d6 {[%emt 0:01:47]} 5. g3 {[%emt 0:05:54]} Nf6 {[%emt 0:01:39]} 6. Nc3 {[%emt 0:01:03]} O-O {[%emt 0:04:30]} 7. Bg2 {[%emt 0:01:43]} Re8 {[%emt 0:03:44]} 8. O-O {[%emt 0:03:54]} c5 {[%emt 0:00:08]} 9. d3 {[%emt 0:02:53]} Nc6 {[%emt 0:00:49]} 10. a3 {[%emt 0:02:40]} h6 {[%emt 0:05:25]} 11. Rb1 {[%emt 0:07:02]} a5 {[%emt 0:00:40]} 12. b3 {[%emt 0:00:20]} d5 {[%emt 0:07:29]} 13. cxd5 Nxd5 {[%emt 0:00:08]} 14. Nxd5 Qxd5 {[%emt 0:00:06]} 15. Bb2 {[%emt 0:08:19]} Qe6 {[%emt 0:05:54]} 16. Nd2 {[%emt 0:01:43]} Ra6 {[%emt 0:16:32]} 17. Ne4 {[%emt 0:09:05]} Nd4 {[%emt 0:08:14]} 18. Bc3 {[%emt 0:05:43]} Bd7 {[%emt 0:10:08]} 19. e3 {[%emt 0:13:46]} Nc6 {[%emt 0:04:02]} 20. Qc2 {[%emt 0:03:31]} Rc8 {[%emt 0:00:06]} 21. Rfc1 {[%emt 0:02:02]} f5 {[%emt 0:08:42]} 22. Nd2 {[%emt 0:00:30]} b5 {[%emt 0:00:04]} 23. Bb2 {[%emt 0:05:37]} Qd6 {[%emt 0:04:05]} 24. Qd1 {[%emt 0:03:05]} a4 {[%emt 0:05:15]} 25. bxa4 {[%emt 0:02:01]} Rxa4 {[%emt 0:00:27]} 26. Nb3 {[%emt 0:01:27]} Nb8 {[%emt 0:05:35]} 27. d4 {[%emt 0:02:04]} exd4 {[%emt 0:02:33]} 28. exd4 {[%emt 0:02:00]} c4 {[%emt 0:02:14]} 29. Nc5 {[%emt 0:00:16]} Ra7 {[%emt 0:00:01]} 30. Nxd7 {[%emt 0:03:39]} Qxd7 {[%emt 0:00:22]} 31. Qf3 {[%emt 0:00:35]} Bf6 {[%emt 0:01:45]} 32. Rd1 {[%emt 0:02:02]} Kh8 {[%emt 0:00:56]} 33. Rbc1 {[%emt 0:02:16]} Nc6 {[%emt 0:00:26]} 34. d5 {[%emt 0:01:36]} Ne5 {[%emt 0:00:21]} 35. Bxe5 {[%emt 0:00:23]} Bxe5 {[%emt 0:00:02]} 36. Bh3 {[%emt 0:00:25]} Rf8 {[%emt 0:00:46]} 37. Rb1 {[%emt 0:00:45]} c3 {[%emt 0:00:40]} 38. Qe2 {[%emt 0:00:47]} Rxa3 {[%emt 0:01:03]} 39. Rdc1 {[%emt 0:01:36]} Qxd5 {[%emt 0:01:37]} 40. Qxb5 {[%emt 0:00:49]} Qd6 {[%emt 0:01:28]} 41. Qb4 {[%emt 0:32:42]} f4 {[%emt 0:08:55]} 42. Qxd6 {[%emt 0:00:00]} Bxd6 {[%emt 0:00:02]} 43. Rc2 {[%emt 0:00:00]} fxg3 {[%emt 0:01:09]} 44. hxg3 {[%emt 0:00:00]} Bc5 {[%emt 0:01:21]} 45. Kg2 {[%emt 0:00:00]} g5 {[%emt 0:06:32]} 46. Be6 {[%emt 0:00:00]} Ra6 {[%emt 0:03:29]} 47. Bd5 {[%emt 0:00:00]} Rd6 {[%emt 0:01:25]} 48. Be4 {[%emt 0:00:00]} g4 {[%emt 0:03:44]} 49. Rxc3 {[%emt 0:00:00]} Rxf2+ {[%emt 0:00:07]} 50. Kh1 {[%emt 0:00:00]} Bb6 {[%emt 0:04:42]} 51. Rc6 {[%emt 0:00:00]} Rxc6 {[%emt 0:00:09]} 52. Bxc6 {[%emt 0:00:00]} Bc7 {[%emt 0:02:09]} 53. Rb3 {[%emt 0:00:00]} 1/2-1/2